Cogmind - Beta 15 @@@ ROGUE MODE // 2025.06.04 @ 02:40:55 Player: Zaros426 Result: Destroyed by S-10 Pest with Light Assault Rifle Performance ------------- Evolutions (0) 0 Regions Visited (3) 600 Robots Destroyed (61) 305 Value Destroyed (1412) 1412 Prototype IDs (11) 220 Alien Tech Used (0) 0 Bonus (25) 25 TOTAL SCORE: 2562 Bonus ------- Follower Combat Kills 25 Cogmind --------- Core Integrity 0/250 Matter 208/300 Energy 200/200 System Corruption 0% Temperature Cool (0) Movement Treading (240) Ox1 Location -10/Subcaves Parts ------- > --- POWER (1) -------- Subdweller Power Source > --- PROPULSION (2) --- Light Treads Light Treads > --- UTILITY (2) ------ High-capacity Storage Unit Makeshift Kinetic Plating > --- WEAPON (2) ------- Battle Cannon Grenade Launcher > --- INVENTORY (20) --- Light Treads Light Treads Light Treads Subdweller Monowheel Subdweller Monowheel Subdweller Monowheel Huge Storage Unit Humpback High-capacity Matter Pod (200) Structural Scanner Transport Network Coupler Makeshift System Shield Power Bank Subdweller Laser Subdweller Beam Cannon Subdweller Machine Gun Subdweller Shrapnel Launcher Dirty Datajack (20) Datajack Peak State ------------ > --- POWER ------------ Subdweller Power Source > --- PROPULSION ------- Light Treads Light Treads > --- UTILITY ---------- High-capacity Storage Unit Makeshift Kinetic Plating > --- WEAPON ----------- Battle Cannon Grenade Launcher > --- INVENTORY -------- Light Treads Light Treads Light Treads Subdweller Monowheel Subdweller Monowheel Subdweller Monowheel Huge Storage Unit Humpback High-capacity Matter Pod Structural Scanner Transport Network Coupler Makeshift System Shield Power Bank Subdweller Laser Subdweller Beam Cannon Subdweller Machine Gun Subdweller Shrapnel Launcher Dirty Datajack Datajack [Rating: 16] Favorites ----------- Power Ion Engine Engine Ion Engine Propulsion Light Treads Treads Light Treads Utility High-capacity Storage Unit Device Structural Scanner Storage High-capacity Storage Unit Protection Makeshift Kinetic Plating Weapon Grenade Launcher Energy Gun Small Laser Energy Cannon Subdweller Beam Cannon Ballistic Gun Subdweller Machine Gun Ballistic Cannon Battle Cannon Launcher Grenade Launcher Build | -11 -10 -10 -10 ------- Run | Yrd Mat Min Sub Slots Evolved . | . . . . Power . | . . . . Propulsion . | . . . . Utility . | . . . . Weapon . | . . . . Parts Attached 34 | 7 13 2 12 Power 4 | 1 2 . 1 Engine 4 | 1 2 . 1 Core . | . . . . Reactor . | . . . . Propulsion 7 | 2 2 . 3 Treads 7 | 2 2 . 3 Leg . | . . . . Wheel . | . . . . Hover . | . . . . Flight . | . . . . Utility 8 | 2 2 2 2 Device 2 | 1 . . 1 Storage 5 | 1 2 2 . Processor . | . . . . Hackware . | . . . . Protection 1 | . . . 1 Artifact . | . . . . Weapon 15 | 2 7 . 6 Energy Gun 3 | 2 1 . . Energy Cannon 1 | . . . 1 Ballistic Gun 2 | . 1 . 1 Ballistic Cannon 3 | . 1 . 2 Launcher 6 | . 4 . 2 Special Weapon . | . . . . Impact Weapon . | . . . . Slashing Weapon . | . . . . Piercing Weapon . | . . . . Special Melee Weapon . | . . . . Unidentified Prototypes . | . . . . Parts Lost 4 | . . . 4 Power . | . . . . Propulsion 1 | . . . 1 Utility 1 | . . . 1 Weapon 2 | . . . 2 Highest Loss Streak 4 | . . . 4 To Critical Strikes . | . . . . Average Backups 15 | 1 10 15 16 Power . | . . . . Propulsion 4 | . 3 6 4 Utility 5 | . 2 4 5 Weapon 4 | 1 3 4 4 Tool/Special . | . . . . Unused Backups 21 | . 3 1 17 Power 2 | . 1 1 . Propulsion 6 | . . . 6 Utility 6 | . 1 . 5 Weapon 5 | . 1 . 4 Tool/Special 2 | . . . 2 Average Slot Usage (%) 99 | . 100 100 99 Engine 14 | . 14 14 14 Treads 28 | . 28 28 28 Device 13 | . 14 14 13 Storage 14 | . 14 14 14 Energy Gun 2 | . 11 . . Energy Cannon 1 | . . . 2 Ballistic Gun 2 | . 1 . 2 Ballistic Cannon 8 | . 1 . 11 Launcher 14 | . 12 28 11 Peak Build Rating 16 | 7 9 9 16 Average Rating 10 | 4 7 8 11 On Entrance 6 | . 7 8 9 Naked Turns . | . . . . Heaviest Build 92 | 13 32 92 59 Greatest Support 40 | 40 40 40 40 Greatest Overweight (x) 2 | 1 . 2 1 Average Overweight (x) . | . . . 1 Largest Inventory Capacity 25 | 8 15 25 20 Average Capacity 18 | 7 13 20 20 Most Carried 20 | 3 15 20 20 Average Carried 17 | 1 11 18 19 Final Capacity 20 | 8 15 20 20 Final Carried 20 | 3 15 20 20 Class Distribution -------------------- 99% | Mutant Dominant Class ---------------- Mutant | -10/Materials Mutant | -10/Mines Mutant | -10/Subcaves Resources | -11 -10 -10 -10 ----------- Run | Yrd Mat Min Sub Matter Collected 1972 | 175 401 210 1186 Remotely . | . . . . Salvage Created 1449 | 171 790 52 436 Parts 99 | 11 56 5 27 Haulers Intercepted 2 | . 2 . . Recyclers Shooed 3 | . 3 . . Parts Field Recycled . | . . . . Retrieved Matter . | . . . . Parts Self-Destructed 6 | . . . 6 Prevented . | . . . . Kills | -11 -10 -10 -10 ------- Run | Yrd Mat Min Sub Combat Hostiles Destroyed 37 | . 13 1 23 Guns 7 | . 6 . 1 Cannons 6 | . . . 6 AOE 24 | . 7 1 16 Classes Destroyed 11 | 2 7 . 2 Worker 2 | . 2 . . Builder 3 | . 3 . . Tunneler 7 | 4 2 1 . Hauler 2 | . 2 . . Recycler 5 | 1 4 . . Operator 2 | . 2 . . Watcher 3 | . 3 . . Swarmer 9 | . 3 . 6 Grunt 13 | . 10 1 2 Sentry 1 | . . . 1 Subdweller 14 | . . . 14 Best Kill Streak 7 | 5 7 1 3 Combat Bots Only 3 | . 3 1 3 Max Kills in Single Turn 4 | 2 4 1 3 Gunslinging . | . . . . Exploded 3 | . 2 1 3 Melee . | . . . . Uniques/NPCs Destroyed . | . . . . Combat | -11 -10 -10 -10 -------- Run | Yrd Mat Min Sub Hostile Shots Fired 91 | . 31 2 58 Missed 29 | . 7 . 22 Hits 62 | . 24 2 36 Projectile 62 | . 24 2 36 Critical Strikes 3 | . 1 . 2 Damage Taken 1196 | . 341 68 787 Core 254 | . 49 18 187 Absorbed by Shields . | . . . . Ignored by Resistances 3 | . . . 3 Core Remaining (%) 100 | 100 . . . Volleys Fired 137 | 7 61 2 67 Largest 2 | 2 2 2 2 Hottest 113 | 80 105 60 113 Shots Fired 252 | 14 122 4 112 Gun 124 | 14 100 . 10 Cannon 54 | . 4 . 50 Launcher 74 | . 18 4 52 Special . | . . . . Kinetic 71 | . 13 . 58 Thermal 118 | 14 91 . 13 Explosive 63 | . 18 4 41 Electromagnetic . | . . . . Robot Hit Streak 16 | 3 11 . 16 Robot Miss Streak 4 | 1 3 3 4 Penetration Max . | . . . . Secondary Targets . | . . . . Shots Hit Robots 126 | 9 67 . 50 Core Hits 101 | 6 51 3 41 Critical Kills . | . . . . Critical Parts Destroyed . | . . . . Critical Strikes 3 | . . . 3 Blast 3 | . . . 3 Melee Attacks . | . . . . Impact . | . . . . Slashing . | . . . . Piercing . | . . . . Sneak Attacks . | . . . . Combat Hostiles . | . . . . Follow-up Attacks . | . . . . Damage Inflicted 4763 | 106 1502 131 3024 Guns 871 | 106 637 . 128 Cannons 359 | . 70 . 289 Explosions 3527 | . 795 125 2607 Melee . | . . . . Ramming 6 | . . 6 . Kinetic 1074 | . 144 . 930 Thermal 699 | 106 563 . 30 Explosive 2969 | . 780 125 2064 Electromagnetic 15 | . 15 . . Impact . | . . . . Slashing . | . . . . Piercing . | . . . . Highest Corruption . | . . . . Average Corruption . | . . . . Corruption Purged . | . . . . Corruption Blocked . | . . . . Overload Shots . | . . . . Overflow Damage 42 | . 14 . 28 Projectiles . | . . . . Explosions 42 | . 14 . 28 Melee . | . . . . Knockbacks 3 | . 2 . 1 Impact . | . . . . Kinetic 3 | . 2 . 1 Secondary . | . . . . Self-Inflicted Damage 98 | . . 36 62 Shots 5 | . . 1 4 Rammed 3 | . . 3 . Targets Rammed 3 | . . 3 . Kicked . | . . . . Crushed . | . . . . Highest Temperature 186 | 126 186 9 . Average Temperature 58 | 64 58 9 . Received Heat Transfer 324 | . 141 18 165 Siege Activations . | . . . . Martial Activations . | . . . . Shielding Activations . | . . . . Robots Disrupted . | . . . . Combat Hostiles . | . . . . Robots Corrupted . | . . . . Combat Hostiles . | . . . . Parts Fried . | . . . . Impact Corruptions . | . . . . Robots Melted . | . . . . Combat Hostiles . | . . . . Parts Melted 1 | . . . 1 Heat Transferred 1573 | 250 1286 . 37 Parts Sabotaged . | . . . . Parts Stolen . | . . . . Parts Stripped . | . . . . Power Chain Reactions . | . . . . Alert | -11 -10 -10 -10 ------- Run | Yrd Mat Min Sub Maximum Alert Level . | . . . . Low Security (%) 100 | 100 100 100 . Level 1 . | . . . . Level 2 . | . . . . Level 3 . | . . . . Level 4 . | . . . . Level 5 . | . . . . High Security . | . . . . Max Security . | . . . . Peak Influence 199 | 25 199 53 . Initial 53 | . 9 53 . Average 50 | 4 87 5 . Influence Increases 933 | 25 595 83 230 Destroy 0b10 Robot/C 480 | . 260 40 180 Destroy 0b10 Robot/NC 120 | 25 90 5 . Destroy Leader 100 | . 70 10 20 Allied During Kill 1 | . . 1 . Successful Hack 21 | . 21 . . Disable Machine 45 | . 45 . . Destroy Structure 106 | . 79 27 . Lose Combat Pursuer 60 | . 30 . 30 Influence Decreases 823 | 10 472 221 120 Entered New Map 91 | . 6 85 . Time Decay 721 | 10 466 125 120 Lost Ally 11 | . . 11 . Squads Dispatched 3 | . 2 1 . Investigation . | . . . . Extermination . | . . . . Reinforcement 2 | . 2 . . Assault 1 | . . 1 . Garrison . | . . . . Intercept . | . . . . Searches Triggered . | . . . . Construction Impeded . | . . . . Haulers Reinforced . | . . . . Active Scanning Responses . | . . . . Cargo Convoy Interrupts . | . . . . Stealth | -11 -10 -10 -10 --------- Run | Yrd Mat Min Sub Distress Signals 2 | . 2 . . Communications Jammed . | . . . . Distress Signals . | . . . . Times Spotted 53 | . 27 1 25 Peak Tracking Total 5 | . 3 1 5 Tactical Retreats 3 | . 2 . 1 Traps | -11 -10 -10 -10 ------- Run | Yrd Mat Min Sub Traps Triggered 3 | . 2 . 1 Indirectly . | . . . . Trap Hack Attempts . | . . . . Triggered . | . . . . Disarmed . | . . . . Reprogrammed . | . . . . Reused 4 | . . . 4 Traps Extracted . | . . . . Installed 4 | . . . 4 Triggered . | . . . . Most Traps Carried 4 | . . 4 4 Machines | -11 -10 -10 -10 ---------- Run | Yrd Mat Min Sub Machines Disabled 4 | . 3 . 1 Max in Single Turn 1 | . 1 . 1 Machines Repaired . | . . . . Machines Dismantled . | . . . . Machines Sabotaged . | . . . . Overloaded Fab Kills . | . . . . Hacking | -11 -10 -10 -10 --------- Run | Yrd Mat Min Sub Machines Accessed 8 | . 6 . 2 Terminals 6 | . 6 . . Fabricators . | . . . . Repair Stations . | . . . . Recycling Units . | . . . . Scanalyzers . | . . . . Garrison Access . | . . . . Total Hacks 34 | . 21 . 13 Successful 22 | . 9 . 13 Failed 12 | . 12 . . Catastrophic 2 | . 2 . . Database Lockouts . | . . . . Manual 21 | . 21 . . Terminals 21 | . 21 . . Fabricators . | . . . . Repair Stations . | . . . . Recycling Units . | . . . . Scanalyzers . | . . . . Garrison Access . | . . . . Terminal Hacks 14 | . 1 . 13 Record 12 | . . . 12 Robot Analysis 1 | . 1 . . Proto ID Catalog 1 | . . . 1 Fabricator Hacks . | . . . . Repair Station Hacks . | . . . . Recycling Unit Hacks . | . . . . Scanalyzer . | . . . . Garrison Access Hacks . | . . . . Unauthorized Hacks 8 | . 8 . . Terminals 8 | . 8 . . Botnet 2 | . 2 . . Operators 1 | . 1 . . Skim 5 | . 5 . . Fabricators . | . . . . Repair Stations . | . . . . Recycling Units . | . . . . Scanalyzers . | . . . . Garrison Access . | . . . . Data Cores Recovered . | . . . . Used . | . . . . Hacking Detections 6 | . 6 . . Full Trace Events . | . . . . Feedback Events . | . . . . Feedback Blocked . | . . . . Robot Schematics Acquired . | . . . . Robots Built . | . . . . Authchips . | . . . . Time . | . . . . Total Robot Build Rating . | . . . . Part Schematics Acquired . | . . . . Parts Built . | . . . . Authchips . | . . . . Time . | . . . . Total Part Build Rating . | . . . . Parts Repaired . | . . . . Time . | . . . . Parts Recycled . | . . . . Recycled Matter . | . . . . Retrieved Matter . | . . . . Retrieved Components . | . . . . Parts Scanalyzed . | . . . . Part Schematics Acquired . | . . . . Parts Damaged . | . . . . Bothacking | -11 -10 -10 -10 ------------ Run | Yrd Mat Min Sub Used RIF Installer . | . . . . Robots Hacked . | . . . . Non-combat . | . . . . Combat . | . . . . Robot Hacks Applied . | . . . . Relay Couplers Released . | . . . . Fabnet Peak Effective % . | . . . . Robots Rewired . | . . . . Allies Hacked . | . . . . Hacks Repelled . | . . . . Allies | -11 -10 -10 -10 -------- Run | Yrd Mat Min Sub Total Allies 1 | . . 1 . Largest Group 1 | . . 1 . Highest-Rated Group 31 | . . 31 . Highest-Rated Ally 31 | . . 31 . Total Orders . | . . . . Ally Attacks 11 | . . 11 . Total Damage 171 | . . 171 . Kills 1 | . . 1 . Allies Corrupted . | . . . . Allies Melted . | . . . . Intel | -11 -10 -10 -10 ------- Run | Yrd Mat Min Sub Active Infowar (turns) 9497 | 5 1744 1357 6391 Structural 5681 | . . . 5681 Seismic 3816 | 5 1744 1357 710 Robot Analysis Total 1 | . 1 . . Derelict Logs Recovered 5 | . . 2 3 Drone Launches . | . . . . Drone Recoveries . | . . . . Exploration | -11 -10 -10 -10 ------------- Run | Yrd Mat Min Sub Turns Passed 9712 | 99 1744 1357 6512 Spaces Moved 3994 | 44 847 511 2592 Core 6 | 6 . . . Treads 3988 | 38 847 511 2592 Legs . | . . . . Wheels . | . . . . Hover . | . . . . Flight . | . . . . Fastest Speed 50 | 50 160 160 240 Average Speed 220 | 148 160 231 240 Slowest Speed 320 | 160 160 320 240 Overloaded Moves . | . . . . Propulsion Burnouts . | . . . . Robots Hopped . | . . . . Potential Cave-ins . | . . . . Cave-ins Triggered . | . . . . Exploration Rate (%) 71 | 4 98 91 94 Regions Visited 3 Branch Regions 2 Pre-discovered Areas 3 | . 2 . 1 Known Exits Taken 1 | . . 1 . Unknown Exits Taken 2 | 1 1 . . Scrap Searched 9 | . . 2 7 Spaces Dug 43 | . . . 43 Terrain Destroyed 357 | . 80 30 247 Melee . | . . . . Projectile 12 | . . . 12 AOE 345 | . 80 30 235 Terrain Rammed . | . . . . Walls Destroyed . | . . . . Machines Disabled . | . . . . Actions | -11 -10 -10 -10 --------- Run | Yrd Mat Min Sub Total 4624 | 60 1117 679 2768 Wait 369 | . 162 155 52 Move 3991 | 43 846 510 2592 Hop . | . . . . Pick Up 42 | 3 17 6 16 Fast Attach 10 | 7 1 . 2 Attach 3 | . . . 3 Detach . | . . . . Swap 34 | . 16 2 16 Drop 31 | . 14 1 16 Fire 137 | 7 61 2 67 Melee . | . . . . Ram . | . . . . Kick . | . . . . Crush 3 | . . 3 . Escape Stasis . | . . . . Rewire . | . . . . Trap 4 | . . . 4 Miscellaneous . | . . . . Route ------- -11/Scrapyard -10/Materials (discovered 6 exits: [*Mat x3] / [*Min x2] / *Sub) -10/Mines (discovered 2 exits: [*Mat] / *Sub) -10/Subcaves (discovered 2 exits: *Mat x2) History --------- Turn | Location | Event 4 | -11/Scrapyard | Discovered new exit (range 15) 100 | -11/Scrapyard | Entered Materials 306 | -10/Materials | Build established: Mutant 637 | -10/Materials | Discovered new exit (range 16) 920 | -10/Materials | Discovered new exit (range 13) 1038 | -10/Materials | Discovered new exit (range 7) 1162 | -10/Materials | Discovered new exit (range 6) 1460 | -10/Materials | Discovered new exit (range 12) 1499 | -10/Materials | Discovered new exit (range 9) 1729 | -10/Materials | Learned location of Storage (-9) 1750 | -10/Materials | Learned 2 Mines zone layouts 1779 | -10/Materials | Learned Storage trap positions 1819 | -10/Materials | Learned location of 2 exits from Materials 1844 | -10/Materials | Entered Mines 1845 | -10/Mines | Identified exit to Subcaves 1956 | -10/Mines | Met a Derelict testing a Signal Generator 2033 | -10/Mines | Learned Materials trap positions 2060 | -10/Mines | Found a hidden stash of uninstalled traps 2337 | -10/Mines | Learned Materials security intel 2440 | -10/Mines | Discovered new exit (range 6) 3201 | -10/Mines | Entered Subcaves 3228 | -10/Subcaves | Identified exit to Materials 3505 | -10/Subcaves | Shifting Twisted Machinery released Sub. Monowheel 3519 | -10/Subcaves | Shifting Twisted Machinery released Sub. Machine Gun 4614 | -10/Subcaves | A swath of the cavern ceiling suddenly collapsed 5211 | -10/Subcaves | Core integrity fell below 50% 5231 | -10/Subcaves | Lost 4 parts (1n1u2w) 5405 | -10/Subcaves | Shifting Twisted Machinery released Shrapnel Trap 5407 | -10/Subcaves | Shifting Twisted Machinery released Sub. Monowheel 6351 | -10/Subcaves | Ambushed by Subdwellers from Twisted Machinery 6399 | -10/Subcaves | Core integrity fell below 20% 7780 | -10/Subcaves | Shifting Twisted Machinery released Mak. System Shield 8151 | -10/Subcaves | Visited 4L-MR0's lab 8174 | -10/Subcaves | Found Power Bank 8390 | -10/Subcaves | Shifting Twisted Machinery released Battle Rifle 8580 | -10/Subcaves | Visited Clippyterm 8587 | -10/Subcaves | Learned Factory fabricator intel 8587 | -10/Subcaves | Learned Research machine intel 8686 | -10/Subcaves | Discovered exit to Materials (range 5) 8699 | -10/Subcaves | A swath of the cavern ceiling suddenly collapsed 9360 | -10/Subcaves | Ambushed by Subdweller buried in earth 9713 | -10/Subcaves | Destroyed by S-10 Pest with Light Assault Rifle Last Messages --------------- 08915_ Found 62 Matter. 08921_ Dropped Ion Engine. 08922_ Acquired Sub. Monowheel. 08923_ Subatomizers dissect the Ion Engine. 08923_ Acquired 10 matter. 08927_ Searching scrap... 08927_ Found Barrage Gun. 08927_ Found Flamer. 08927_ Found 59 Matter. 08947_ Subatomizers dissect the Ion Engine. 09007_ Dropped Mining Laser. 09007_ Acquired Sub. Monowheel. 09361_ 4W-5WD(R): "ARGHSUB!" 09363_ 4W-5WD(R) Sub. Monowheel blasted off. 09363_ 4W-5WD(R) destroyed. 09413_ Sub. Beam Cannon shoots sparks and powers down. 09531_ Acquired 2 matter. 09536_ Acquired 21 matter. 09711_ Destroyed Flight Unit. 09711_ S-10 Pest destroyed. Map ----- +----------------------------------------------------+ | ### ## ###????????????? | | ##### #### < ##????????????? | | # ######### ## ##????????????? | | # ####### ####????????????? | | #### # & ###??????????????? | | #### # & ###???????????????? | | ### & ## ###????????????????? | | # # ## " ###????????????????? | | ## ## ### ########?????????????? | | #### # ##### ########?????????????? | | #### ## ######### ##### ##?????????????? | | ??### ########## ##### ##?????????????? | | ??### ########## ##### ##?????????????? | | ???## ##### # ## ###?????????????? | | ??### ###??????????????? | | #### ###???????????????? | | ## """"" ### # # ###???????????????? | | ###" " "" ######## ####??????????????? | | ###" #"""" ####### ###??????????????? | | ?###"""#" " #### ##??????????????? | | ?##"""### " #### ### ##??????????????? | | ?## ####### # #### ###?????????????? | | ### # ###### # #### ####????????????? | | ### ###"" # # ## ###????????????? | | ### " ##????????????? | | " @ ##????????????? | | ## # ## # # # ##????????????? | | ##################### #####????????????? | | ##################### ######????????????? | | ##??????????????????#### s ####??????????????? | | ?????????????????????## %[= ####?????????????? | | ?????????????????????## =* ## ###?????????????? | | ??????????????????## ### ##?????????????? | | ??????????????????## ## ##?????????????? | | ??????????????????## ## ### ###?????????????? | | ??????????????????## ############?????????????? | | ?????????????????? "########??????????????? | | ????????????????? ?????????????????????????? | | ?????????????#### ??????????????????????????? | | ????????????#####?? ??????????????????????????? | | ???????????###[##???????????????????????????????? | | ??????????###%###???????????????????????????????? | | #?????######=###???????####?????????????????????? | | ##??#######[%##???????#####?????????????????????? | | ######## ###???????### ##?????????????????????? | | ###### ###???????### ###?????????????????????? | | ####"" ###??????### ###??????????????????????? | | ###"""" #####???### ###???????????????????????? | | # " " ######### ###????????????????????????? | | " " ######"###?????????????????????????? | +----------------------------------------------------+ Best States ------------- Heat Dissipation 25 Energy Generation 15 Energy Capacity 250 Matter Stores 300 Matter Capacity 300 Sight Range 16 Terrain Scan Density 10 Armor Coverage 100 Resistance: KI 10 Evasion (%) 40 Recoil Reduction 2 Item Schematics ----------------- None Robot Schematics ------------------ None Fabricated ------------ Nothing Repaired ---------- Nothing Alien Tech Used ----------------- None Achievements -------------- None Challenges ------------ None Game ------ Seed RecyclingSuperchargedUnit Manual? 0 Play Time 00:33:26 Cumulative 281.3 hours Start 2025.06.02 @ 19:47:06 End 2025.06.04 @ 02:40:55 Sessions 3 Manual Loads 0 Difficulty Rogue Special Mode None Game No. 140 Rogue 140 Adventurer 0 Explorer 0 Win Type - Total 1 Types 0/0/0/0/1/0/0/0/0/0 Lore% 71 Gallery% 74 Achievement% 64 Wizard Run 0 Options --------- Layout 0 ASCII 0 Keyboard 0 Movement Mouse Keybinds 0 Fullscreen 1 Font 24/Smallcaps Map View 183x50 Zoom Use 0% Tactical HUD 1 Map Filters NONE Filters NONE Steam 0 RUN: 82f75a67-8328-457b-aa4b-99fd19151630